[Event "Hungary Olimpic Hopes 2022"]
[Site "Tapolca"]
[Date "2022.06.23"]
[Round "2.18"]
[White "Papai, Mate"]
[Black "Matejcsek, Vajk"]
[Result "1/2-1/2"]
[ECO "D20"]
[WhiteElo "1406"]
[BlackElo "1319"]
[Annotator "NA RC"]
[PlyCount "118"]
[EventDate "2022.06.23"]
[EventType "swiss"]
[EventCountry "HUN"]
[SourceTitle "playchess.com"]
[Source "ChessBase"]
[SourceQuality "1"]
[TimeControl "5400+30"]

1. d4 {[%emt 0:30:03]} d5 {[%emt 0:30:02]} 2. c4 {[%emt 0:00:05]} dxc4 {[%emt 0:00:34]} 3. e4 {[%emt 0:00:05]} Nc6 {[%emt 0:00:37]} 4. d5 {[%emt 0:00:44]} Ne5 {[%emt 0:00:23]} 5. Bf4 {[%emt 0:00:08]} f6 {[%emt 0:00:53]} 6. Bxe5 {[%emt 0:00:23]} fxe5 {[%emt 0:00:38]} 7. Bxc4 {[%emt 0:00:55]} Nf6 {[%emt 0:01:06]} 8. Nc3 {[%emt 0:00:29]} g6 {[%emt 0:01:32]} 9. Nf3 {[%emt 0:01:20]} Qd6 {[%emt 0:00:40]} 10. a3 {[%emt 0:02:50]} Bd7 {[%emt 0:00:26]} 11. b4 {[%emt 0:03:48]} O-O-O {[%emt 0:03:29]} 12. b5 {[%emt 0:01:01]} Bh6 {[%emt 0:02:53]} 13. O-O {[%emt 0:01:42]} Rhe8 {[%emt 0:01:21]} 14. a4 {[%emt 0:00:38]} e6 {[%emt 0:00:30]} 15. a5 {[%emt 0:01:04]} exd5 16. Bxd5 Nxd5 {[%emt 0:07:58]} 17. Nxd5 {[%emt 0:17:34]} Bxb5 {[%emt 0:01:13]} 18. Re1 {[%emt 0:02:15]} c6 {[%emt 0:00:42]} 19. Qc2 {[%emt 0:02:04]} Kb8 {[%emt 0:01:28]} 20. Nc3 {[%emt 0:01:33]} Qd3 {[%emt 0:02:29]} 21. Qb2 {[%emt 0:03:05]} Bd2 {[%emt 0:02:08]} 22. Nxd2 {[%emt 0:03:11]} Qxd2 {[%emt 0:00:10]} 23. Qb3 Rf8 {[%emt 0:00:43]} 24. Nxb5 {[%emt 0:04:11]} cxb5 {[%emt 0:00:57]} 25. Qxb5 {[%emt 0:00:20]} Qxf2+ {[%emt 0:00:52]} 26. Kh1 {[%emt 0:00:03]} Rde8 {[%emt 0:01:41]} 27. a6 {[%emt 0:02:41]} Qb6 28. Qd7 {[%emt 0:01:48]} Qc7 {[%emt 0:01:07]} 29. Qxc7+ {[%emt 0:00:56]} Kxc7 {[%emt 0:00:15]} 30. axb7 {[%emt 0:00:13]} Kxb7 {[%emt 0:00:19]} 31. Reb1+ {[%emt 0:00:18]} Ka8 {[%emt 0:00:20]} 32. g3 {[%emt 0:00:18]} Rf7 33. Ra5 {[%emt 0:00:23]} Rd7 {[%emt 0:02:07]} 34. Rbb5 {[%emt 0:00:56]} Rde7 {[%emt 0:02:01]} 35. Kg2 {[%emt 0:00:28]} h5 {[%emt 0:00:53]} 36. Kh3 {[%emt 0:00:18]} g5 37. Rd5 {[%emt 0:02:07]} Kb7 {[%emt 0:01:49]} 38. Rd6 {[%emt 0:01:33]} Rh7 {[%emt 0:01:07]} 39. Rda6 {[%emt 0:01:08]} Ka8 {[%emt 0:01:00]} 40. Rg6 {[%emt 0:00:26]} g4+ {[%emt 0:00:30]} 41. Kh4 {[%emt 0:00:06]} Rf8 {[%emt 0:01:38]} 42. Rxe5 {[%emt 0:00:51]} Rf2 {[%emt 0:00:10]} 43. Re8+ {[%emt 0:00:16]} Kb7 {[%emt 0:00:39]} 44. e5 {[%emt 0:00:24]} Rxh2+ {[%emt 0:00:10]} 45. Kg5 {[%emt 0:00:06]} Rg2 46. e6 {[%emt 0:01:10]} Rxg3 {[%emt 0:00:52]} 47. Rf6 {[%emt 0:00:54]} Rf3 48. Rxf3 gxf3 {[%emt 0:01:32]} 49. Rf8 {[%emt 0:04:35]} Kc6 {[%emt 0:01:21]} 50. Rxf3 {[%emt 0:00:49]} Kd6 51. Re3 Ke7 {[%emt 0:01:45]} 52. Kf5 {[%emt 0:02:08]} h4 {[%emt 0:00:52]} 53. Ra3 {[%emt 0:00:11]} Rh5+ {[%emt 0:01:11]} 54. Kg4 {[%emt 0:00:16]} Re5 {[%emt 0:00:15]} 55. Rxa7+ {[%emt 0:00:23]} Kxe6 {[%emt 0:00:33]} 56. Kf4 Rf5+ {[%emt 0:00:53]} 57. Kg4 {[%emt 0:01:10]} Rf7 {[%emt 0:00:17]} 58. Ra6+ {[%emt 0:00:09]} Ke7 {[%emt 0:00:26]} 59. Kxh4 {[%emt 0:00:07]} Rf6 1/2-1/2

[Event "Hungary Olimpic Hopes 2022"]
[Site "Tapolca"]
[Date "2022.06.23"]
[Round "2.19"]
[White "Hangyal, Anna"]
[Black "Illes-Nagy, Nora"]
[Result "0-1"]
[ECO "B48"]
[WhiteElo "1105"]
[BlackElo "1297"]
[Annotator "NA RC"]
[PlyCount "48"]
[EventDate "2022.06.23"]
[EventType "swiss"]
[EventCountry "HUN"]
[SourceTitle "playchess.com"]
[Source "ChessBase"]
[SourceQuality "1"]
[TimeControl "5400+30"]

1. e4 {[%emt 0:30:08]} c5 {[%emt 0:30:09]} 2. Nf3 {[%emt 0:00:05]} e6 {[%emt 0:00:46]} 3. d4 {[%emt 0:00:11]} cxd4 {[%emt 0:00:48]} 4. Nxd4 {[%emt 0:00:22]} Nc6 {[%emt 0:00:15]} 5. Nc3 {[%emt 0:05:53]} Qc7 {[%emt 0:00:55]} 6. Be3 {[%emt 0:00:40]} a6 {[%emt 0:00:22]} 7. Bc4 {[%emt 0:03:50]} Nf6 {[%emt 0:01:03]} 8. O-O {[%emt 0:03:34]} Bb4 {[%emt 0:07:48]} 9. Qd3 Ng4 10. f4 {[%emt 0:11:00]} Nxe3 {[%emt 0:00:59]} 11. Qxe3 Nxd4 {[%emt 0:00:14]} 12. Qxd4 {[%emt 0:00:22]} Bc5 13. Rad1 {[%emt 0:10:02]} Bxd4+ {[%emt 0:00:16]} 14. Rxd4 {[%emt 0:00:00]} b5 15. Bb3 Bb7 {[%emt 0:04:27]} 16. Rfd1 {[%emt 0:00:39]} Bc6 17. f5 {[%emt 0:02:42]} Qa7 {[%emt 0:03:40]} 18. Kh1 {[%emt 0:00:36]} Qc7 {[%emt 0:02:53]} 19. Kg1 {[%emt 0:01:14]} g6 {[%emt 0:00:53]} 20. Rf1 {[%emt 0:00:19]} Qe5 21. Rdd1 {[%emt 0:00:23]} gxf5 {[%emt 0:00:46]} 22. exf5 Rg8 {[%emt 0:00:50]} 23. g3 {[%emt 0:00:52]} Rxg3+ 24. Kf2 {[%emt 0:00:47]} Qe3# {[%emt 0:00:41]} 0-1

[Event "Hungary Olimpic Hopes 2022"]
[Site "Tapolca"]
[Date "2022.06.23"]
[Round "2.20"]
[White "Hangay, Lilla"]
[Black "Csiszar, Vivien"]
[Result "0-1"]
[ECO "B32"]
[WhiteElo "1239"]
[BlackElo "1082"]
[Annotator "NA RC"]
[PlyCount "74"]
[EventDate "2022.06.23"]
[EventType "swiss"]
[EventCountry "HUN"]
[SourceTitle "playchess.com"]
[Source "ChessBase"]
[SourceQuality "1"]
[TimeControl "5400+30"]

1. e4 {[%emt 0:30:04]} c5 {[%emt 0:30:03]} 2. Nf3 {[%emt 0:00:13]} Nc6 {[%emt 0:00:07]} 3. d4 {[%emt 0:00:06]} cxd4 {[%emt 0:00:04]} 4. Nxd4 {[%emt 0:00:09]} e5 {[%emt 0:00:07]} 5. Nb5 {[%emt 0:00:21]} Nf6 {[%emt 0:00:20]} 6. N1c3 {[%emt 0:00:22]} d6 {[%emt 0:00:17]} 7. Bg5 {[%emt 0:00:35]} a6 {[%emt 0:00:14]} 8. Na3 {[%emt 0:00:05]} d5 {[%emt 0:00:25]} 9. Nxd5 {[%emt 0:01:47]} Bxa3 {[%emt 0:02:50]} 10. bxa3 {[%emt 0:00:56]} Qa5+ {[%emt 0:00:16]} 11. Bd2 {[%emt 0:04:23]} Qd8 {[%emt 0:00:38]} 12. Qf3 {[%emt 0:02:32]} Nxd5 {[%emt 0:10:17]} 13. exd5 {[%emt 0:00:52]} Nd4 {[%emt 0:03:21]} 14. Qe4 {[%emt 0:00:19]} Qc7 {[%emt 0:05:15]} 15. c3 {[%emt 0:01:38]} Bf5 {[%emt 0:01:30]} 16. d6 Bxe4 {[%emt 0:05:16]} 17. dxc7 {[%emt 0:04:08]} Nc2+ {[%emt 0:00:12]} 18. Ke2 {[%emt 0:00:46]} Nxa1 {[%emt 0:00:26]} 19. Ke3 {[%emt 0:00:42]} Bg6 {[%emt 0:01:10]} 20. Bc1 {[%emt 0:01:22]} Nc2+ {[%emt 0:01:04]} 21. Kd2 {[%emt 0:00:30]} Rc8 {[%emt 0:01:56]} 22. Bd3 {[%emt 0:00:55]} Bxd3 {[%emt 0:01:11]} 23. Kxd3 {[%emt 0:00:11]} Rxc7 {[%emt 0:00:42]} 24. Kxc2 {[%emt 0:00:14]} Ke7 {[%emt 0:00:59]} 25. Re1 {[%emt 0:00:56]} f6 {[%emt 0:00:40]} 26. f4 {[%emt 0:00:51]} Rc5 {[%emt 0:00:56]} 27. Be3 {[%emt 0:00:41]} Ra5 {[%emt 0:01:09]} 28. c4 {[%emt 0:01:24]} e4 {[%emt 0:02:47]} 29. g4 {[%emt 0:02:04]} Rc8 {[%emt 0:11:20]} 30. Kb3 {[%emt 0:05:24]} b5 {[%emt 0:01:23]} 31. c5 {[%emt 0:02:02]} Rc6 {[%emt 0:01:45]} 32. Bd2 {[%emt 0:00:53]} Ra4 {[%emt 0:00:16]} 33. Rc1 {[%emt 0:05:48]} Ke6 {[%emt 0:02:15]} 34. f5+ {[%emt 0:01:53]} Kd5 {[%emt 0:00:20]} 35. Rd1 {[%emt 0:02:25]} Rd4 {[%emt 0:01:49]} 36. Kc2 {[%emt 0:04:43]} Rxc5+ {[%emt 0:00:45]} 37. Kb2 {[%emt 0:00:46]} e3 {[%emt 0:00:22]} 0-1

[Event "Hungary Olimpic Hopes 2022"]
[Site "Tapolca"]
[Date "2022.06.24"]
[Round "3.1"]
[White "Kolimar, Kristof Pal"]
[Black "Turcsanyi, Vince Gergo"]
[Result "1/2-1/2"]
[ECO "A05"]
[WhiteElo "2203"]
[BlackElo "2120"]
[Annotator "TA"]
[PlyCount "54"]
[EventDate "2022.06.23"]
[EventType "swiss"]
[EventCountry "HUN"]
[SourceTitle "playchess.com"]
[Source "ChessBase"]
[SourceQuality "1"]
[TimeControl "5400+30"]

{[%evp 12,54,40,2,3,11,35,27,16,20,39,39,37,36,37,45,65,72,102,100,99,102,102,101,97,100,101,97,101,100,106,-6,-2,-2,-2,-2,-2,-2,-2,-2,-2,-2,-2,-7,-22]} 1. Nf3 {[%emt 0:00:03]} Nf6 {[%emt 0:00:09]} 2. c4 {[%emt 0:00:08]} e6 {[%emt 0:00:07]} 3. g3 {[%emt 0:00:04]} d5 {[%emt 0:00:08]} 4. Bg2 {[%emt 0:00:03]} Be7 {[%emt 0:00:09]} 5. d4 {[%emt 0:00:05]} O-O {[%emt 0:00:09]} 6. O-O {[%emt 0:00:04]} dxc4 {[%emt 0:00:08]} 7. Qc2 {[%emt 0:00:06]} b6 {[%emt 0:00:12] E05: Open Catalan: 5 Nf3 Be7.} 8. Bg5 {[%emt 0:07:06]} Nd5 {[%emt 0:00:35]} 9. Bxe7 {[%emt 0:08:59]} Qxe7 {[%emt 0:00:22] White has an edge.} 10. Ne5 c5 {[%emt 0:23:30]} 11. dxc5 {[%emt 0:12:00]} Qxc5 {[%emt 0:00:27]} 12. Qxc4 {[%emt 0:00:26]} Qxc4 {[%emt 0:03:02]} 13. Nxc4 Ba6 {[%emt 0:02:00]} 14. Ne3 {[%emt 0:04:24] [#]} Bb7 $146 {[%emt 0:23:25]} (14... Bxe2 $2 15. Re1 (15. Nxd5 exd5 16. Re1 Bb5 $16) 15... Bb5 16. Nxd5 exd5 17. Nc3 $18 (17. Bxd5 Bc6 $14)) ({Predecessor:} 14... Nd7 15. Nxd5 exd5 16. Nc3 Nf6 17. Rfd1 Rfd8 18. Nxd5 Nxd5 19. Rxd5 Rac8 20. e3 Bc4 21. Rxd8+ Rxd8 {1-0 (54) Kozionov,K (2466)-Mendonca,L (2418) Moscow 2020}) 15. Nxd5 {[%emt 0:02:23]} Bxd5 {[%emt 0:02:22]} 16. Bxd5 {[%emt 0:01:23]} exd5 {[%emt 0:00:01]} 17. Rd1 {[%emt 0:00:12]} Rd8 {[%emt 0:01:09]} 18. Nc3 {[%emt 0:00:11]} d4 {[%emt 0:00:05]} 19. Nb5 {[%emt 0:00:10] [#] Black must now prevent Nc7.} Nc6 {[%emt 0:00:08]} 20. Rac1 {[%emt 0:00:04]} Rac8 {[%emt 0:00:13]} 21. Nxd4 {[%emt 0:00:06]} Nxd4 $11 {[%emt 0:00:15] The position is equal.} 22. Rxc8 {[%emt 0:00:15][%cal Rc8d8]} Nxe2+ {[%emt 0:00:14]} 23. Kf1 {[%emt 0:00:03][%cal Rc8d8] [#]} Nxg3+ {[%emt 0:05:02]} 24. hxg3 {[%cal Rd1d8]} Rxc8 $16 {[%emt 0:00:05] KR-KR} 25. Rd7 {[%emt 0:00:16]} Ra8 {[%emt 0:03:08]} 26. Rb7 {[%emt 0:02:05]} h5 27. Kg2 {[%emt 0:06:54]} g6 {[%emt 0:02:05] Weighted Error Value: White=0.14 (very precise) /Black=0.07 (flawless)} 1/2-1/2

[Event "Hungary Olimpic Hopes 2022"]
[Site "Tapolca"]
[Date "2022.06.24"]
[Round "3.2"]
[White "Gergely, Daniel"]
[Black "Bodrogi, Bendeguz"]
[Result "1-0"]
[ECO "A65"]
[WhiteElo "1964"]
[BlackElo "2198"]
[Annotator "TA"]
[PlyCount "75"]
[EventDate "2022.06.23"]
[EventType "swiss"]
[EventCountry "HUN"]
[SourceTitle "playchess.com"]
[Source "ChessBase"]
[SourceQuality "1"]
[TimeControl "5400+30"]

{[%evp 24,75,87,79,116,103,98,115,126,141,166,157,165,154,157,150,152,151,162,152,148,152,169,170,196,196,196,192,196,187,306,259,295,220,233,220,227,233,203,218,243,245,388,379,704,704,752,752,745,737,737,737,5297,5206]} 1. d4 {[%emt 0:00:04]} Nf6 {[%emt 0:00:10]} 2. c4 {[%emt 0:00:10]} c5 {[%emt 0:00:04]} 3. d5 {[%emt 0:00:14]} e6 {[%emt 0:00:06]} 4. Nc3 {[%emt 0:00:15]} exd5 {[%emt 0:00:06]} 5. cxd5 {[%emt 0:00:07]} d6 {[%emt 0:00:07]} 6. e4 {[%emt 0:00:17]} g6 {[%emt 0:00:10]} 7. Bd3 {[%emt 0:00:15]} Bg7 {[%emt 0:00:12]} 8. h3 {[%emt 0:00:05]} O-O {[%emt 0:00:18]} 9. Nf3 {[%emt 0:00:35]} Re8 {[%emt 0:01:09]} 10. O-O {[%emt 0:00:48]} a6 {[%emt 0:12:21]} 11. a4 {[%emt 0:00:22]} Nbd7 {[%emt 0:09:37]} 12. Bf4 c4 13. Bc2 {[%emt 0:14:44] White is more active.} ({Don't play} 13. Bxc4 $6 Nxe4 14. Nxe4 Rxe4 $11) 13... Nc5 {[%emt 0:01:27][%cal Rf6e4] A70: Modern Benoni: 6 e4 g6 7 Nf3.} 14. Re1 {[%emt 0:10:25]} Nh5 15. Bh2 {[%emt 0:02:35]} Qb6 {[%emt 0:30:53] White is better.} 16. Rb1 {[%emt 0:03:30]} Bd7 {[#]} 17. Nd2 $1 Qc7 {[%emt 0:11:06]} 18. Nxc4 {[%emt 0:11:31]} Nxe4 19. Rxe4 {[%emt 0:10:03]} Rxe4 {[%emt 0:00:28]} 20. Nxe4 {[%emt 0:01:45]} ({Don't take} 20. Bxd6 $6 Qxc4 21. Nxe4 Rc8 $16) 20... Qxc4 {[%emt 0:00:13]} 21. Nxd6 {[%emt 0:15:00][%cal Be4d6,Bd6b7,Bb7c5][%mdl 32]} Qb4 {[#]} 22. Qe1 $146 {[%emt 0:00:06]} ({Predecessor:} 22. Qf3 f5 23. g4 Bf8 24. Nxf5 Nf6 25. Ng3 Bg7 26. g5 Ne8 27. Ne4 Rc8 28. Qb3 {1-0 (68) Serikbay,A (2188)-Boiarintsev,V (2364) Moscow 2018}) 22... Qxe1+ {[%emt 0:06:17]} 23. Rxe1 {[%emt 0:04:26]} Kf8 24. Nxb7 {[%emt 0:01:51] aiming for Nc5.} Bxb2 {[%emt 0:05:19]} 25. Nc5 {[%emt 0:06:38]} Nf6 {[%emt 0:11:49]} 26. Bd3 {[%emt 0:02:10]} Bd4 {[%emt 0:00:05]} (26... Bf5 {is a better defense.} 27. Bxf5 gxf5) 27. Nxd7+ $18 {[%emt 0:03:56]} ({Less strong is} 27. Nxa6 Nxd5 28. Be5 Bxe5 29. Rxe5 Be6 $16) 27... Nxd7 {[%emt 0:02:11]} 28. d6 {[%emt 0:04:38][%cal Bd5d6,Bd6d7][%mdl 32]} Nc5 {[%emt 0:03:58]} 29. Bc4 {[%emt 0:02:19][%cal Od6d7] Threatens to win with d7!} Bf6 {[%emt 0:01:37]} 30. Bd5 {[%emt 0:02:37]} Re8 {[%cal Re8e1]} 31. Rd1 Nxa4 {[%emt 0:04:06]} 32. Bc6 {[%emt 0:01:17][%csl LRa4,LRe8]} Nc3 {[%emt 0:00:03]} (32... Nc5 {was called for.} 33. Bxe8 Kxe8) 33. d7 Rd8 {[%emt 0:01:21]} (33... Re6 34. d8=Q+ Bxd8 35. Rxd8+ Ke7 36. Re8+ Kf6 37. Rxe6+ Kxe6) 34. Re1 {[%emt 0:01:01] White is clearly winning.} Nb5 {[%emt 0:00:04]} 35. Re8+ {[%emt 0:00:57]} Kg7 {[%emt 0:00:05]} 36. Be5 Bxe5 {[%emt 0:01:21]} 37. Rxd8 {[%emt 0:00:32]} Nd4 {[#]} 38. Rg8+ $3 {[%emt 0:00:37][%mdl 512] Black got outplayed after the opening.  Weighted Error Value: White=0.03 (flawless) /Black=0.25 (precise)} 1-0

[Event "Hungary Olimpic Hopes 2022"]
[Site "Tapolca"]
[Date "2022.06.24"]
[Round "3.3"]
[White "Kossela, Peter"]
[Black "Szegedy, Matyas"]
[Result "0-1"]
[ECO "A48"]
[WhiteElo "1767"]
[BlackElo "2046"]
[Annotator "TA"]
[PlyCount "48"]
[EventDate "2022.06.23"]
[EventType "swiss"]
[EventCountry "HUN"]
[SourceTitle "playchess.com"]
[Source "ChessBase"]
[SourceQuality "1"]
[TimeControl "5400+30"]

{[%evp 10,48,14,13,0,3,3,0,19,12,16,6,8,0,37,37,31,32,39,0,0,0,0,-6,0,0,0,0,0,-50,0,0,0,0,0,-1,0,0,0,0,0]} 1. d4 {[%emt 0:00:06]} Nf6 {[%emt 0:00:08]} 2. Nf3 {[%emt 0:00:06]} g6 {[%emt 0:05:29]} 3. b3 {[%emt 0:00:32]} Bg7 {[%emt 0:00:24]} 4. Bb2 {[%emt 0:00:13]} O-O {[%emt 0:07:19]} 5. e3 {[%emt 0:00:39]} d5 {[%emt 0:00:19]} 6. Be2 {[%emt 0:00:31]} c5 {[%emt 0:01:03] D04: Colle System.} 7. dxc5 {[%emt 0:01:42]} Qa5+ {[%emt 0:01:22]} 8. Nbd2 {[%emt 0:00:23]} Nc6 {[%emt 0:03:07]} 9. O-O {[%emt 0:01:07]} Qxc5 {[%emt 0:06:00]} 10. c4 {[%emt 0:04:10]} Rd8 {[%emt 0:00:24]} 11. Rc1 {[%emt 0:01:37] [#]} Qa5 $146 {[%emt 0:10:53]} ({Predecessor:} 11... dxc4 12. Bxc4 Qa5 13. Bc3 Qh5 14. Be2 Qf5 15. Qe1 Be6 16. Nd4 Nxd4 17. Bxd4 Bd5 {½-½ (86) Betaneli,A (2231)-Vestby Ellingsen,M (2194) Fagernes 2018}) 12. a3 {[%emt 0:00:30]} dxc4 {[%emt 0:10:45]} 13. b4 {[%emt 0:04:39]} Qf5 {[%emt 0:05:13] [#] aiming for ...b5.} 14. Bxc4 Ne4 {[%emt 0:00:08]} 15. Bxg7 {[%emt 0:01:06]} Kxg7 16. Qe2 Nxd2 {[%emt 0:01:34]} 17. Nxd2 {[%emt 0:01:13]} a5 {[%emt 0:00:00]} 18. b5 {[%emt 0:03:35]} Ne5 {[%emt 0:05:02]} 19. Ba2 {[%emt 0:06:36]} (19. a4 $11) 19... Nd3 {[%emt 0:03:46]} ({Black should play} 19... Qd3 $15 20. Qxd3 Rxd3) 20. Rc3 {[%emt 0:18:23] [#] Bb1 is the strong threat. The position is equal.} Nc5 $1 {[%emt 0:07:22]} 21. Rfc1 {[%emt 0:03:25]} b6 {[%emt 0:10:50]} 22. Nb3 {[%cal Rb3c5]} Nxb3 {[%emt 0:00:07]} 23. Bxb3 {[%emt 0:00:58]} Bd7 {[%emt 0:00:53] Against Rc6} 24. a4 Rac8 {[%mdl 32768] Weighted Error Value: White=0.06 (flawless) /Black=0.06 (flawless) . Loss on time!?} 0-1

[Event "Hungary Olimpic Hopes 2022"]
[Site "Tapolca"]
[Date "2022.06.24"]
[Round "3.4"]
[White "Herczeg, Marcell"]
[Black "Foldes, Marton Gabor"]
[Result "1-0"]
[ECO "B32"]
[WhiteElo "2045"]
[BlackElo "2006"]
[Annotator "TA"]
[PlyCount "135"]
[EventDate "2022.06.23"]
[EventType "swiss"]
[EventCountry "HUN"]
[SourceTitle "playchess.com"]
[Source "ChessBase"]
[SourceQuality "1"]
[TimeControl "5400+30"]

{[%evp 15,135,30,42,30,30,39,33,42,38,49,27,28,77,-19,16,0,72,32,54,46,50,41,53,72,79,13,38,0,0,0,0,0,0,0,0,0,10,0,0,0,0,0,0,0,0,0,0,0,0,0,0,0,13,11,77,63,161,160,164,4,14,18,74,58,61,52,52,48,50,0,15,0,0,0,0,0,18,29,35,31,27,18,97,109,139,118,142,117,124,139,94,127,101,0,0,0,0,0,0,0,0,0,323,247,468,460,429,419,830,829,584,258,291,291,291,249,282,291,297,305,572,546]} 1. e4 {[%emt 0:00:04]} c5 {[%emt 0:00:02]} 2. Nf3 {[%emt 0:00:27]} Nc6 {[%emt 0:00:04]} 3. d4 {[%emt 0:00:08]} cxd4 {[%emt 0:00:05]} 4. Nxd4 {[%emt 0:00:06]} Qb6 {[%emt 0:00:04]} 5. Nb3 {[%emt 0:01:00]} Nf6 {[%emt 0:00:09]} 6. Nc3 {[%emt 0:00:36]} e6 {[%emt 0:00:04]} 7. Qe2 {[%emt 0:09:18]} Bb4 {[%emt 0:00:05]} 8. Bd2 {[%emt 0:00:08]} O-O {[%emt 0:00:11]} 9. a3 {[%emt 0:00:14] B33: Sicilian: Pelikan and Sveshnikov Variations.} Be7 {[%emt 0:03:50]} 10. O-O-O {[%emt 0:00:33]} d5 {[%emt 0:00:14]} 11. exd5 {[%emt 0:00:48] White is slightly better.} Nxd5 {[%emt 0:01:30]} 12. g3 {[%emt 0:07:01]} Bf6 {[%emt 0:24:03]} 13. Ne4 {[%emt 0:05:27] [#]} Be5 $146 {[%emt 0:02:01]} (13... Be7 $11) ({Predecessor:} 13... e5 14. Nxf6+ Nxf6 15. Bg5 Bg4 16. f3 Be6 17. Bxf6 gxf6 18. Qe4 f5 19. Qh4 Qe3+ 20. Kb1 Rfd8 21. Bd3 Bxb3 {0-1 (46) Mista,A (2617)-Pichot,A (2556) Chess.com INT 2017}) 14. Nec5 {[%emt 0:13:20]} (14. Bg2 $16) 14... Bf6 {[%emt 0:11:55]} 15. Ne4 {[%emt 0:10:38]} (15. Bg2 $11) 15... Be5 $16 {[%emt 0:00:30]} 16. Qb5 {[%emt 0:06:29]} Qc7 {[%emt 0:15:54]} 17. f4 {[%emt 0:09:45]} Nd4 {[%emt 0:03:24][%csl Gd4][%cal Rc7c2] [#]} 18. Qc4 Nxb3+ {[%emt 0:04:43]} 19. Qxb3 {[%emt 0:01:11]} Bd4 {[%emt 0:00:45]} 20. Bd3 {[%emt 0:16:43]} (20. Bg2 $16) 20... b5 {[%emt 0:03:59]} 21. Nc3 {[%emt 0:04:24]} (21. Qxb5 $2 Rb8 22. Ba5 Rxb5 $19) (21. Rhe1 $5 {[%cal Rd2b4]}) 21... Nxc3 {[%emt 0:04:15]} 22. Bxc3 {[%emt 0:00:07]} Bxc3 {[%emt 0:00:51]} 23. Qxc3 {[%emt 0:00:05]} Qxc3 {[%emt 0:07:03]} 24. bxc3 {[%emt 0:00:05]} Bb7 {[%emt 0:00:43]} 25. Rhe1 {[%emt 0:00:09]} a6 {[%emt 0:01:14]} 26. Be4 {[%emt 0:01:45]} Bxe4 {[%emt 0:00:43]} 27. Rxe4 $11 {[%emt 0:00:06][%mdl 4096] Endgame KRR-KRR} Rfc8 {[%emt 0:02:47]} 28. Kb2 {[%emt 0:00:36]} Rc6 {[%emt 0:02:41]} 29. Kb3 {[%emt 0:05:10]} Rac8 30. c4 {[%emt 0:03:49]} f5 {[%emt 0:01:56]} 31. Red4 {[%emt 0:00:36]} Rxc4 {[%emt 0:03:30]} 32. Rxc4 Rxc4 {[%emt 0:02:41] KR-KR} 33. Rd6 {[%emt 0:00:15][%csl LRa6,LRe6]} a5 {[%emt 0:03:40]} 34. Rxe6 {[%emt 0:00:10]} Rc5 {[%emt 0:00:27]} (34... a4+ $11 35. Kb2 b4) 35. c3 $16 {[%emt 0:02:24]} Kf7 {[%emt 0:01:21]} (35... Rc4 $14) 36. Ra6 $18 {[%emt 0:00:27]} a4+ {[%emt 0:00:30]} 37. Kc2 $2 {[%emt 0:00:35]} (37. Kb4 $18 Rc4+ 38. Kxb5 Rxc3 39. Rxa4 (39. Kxa4 Rc2 $16)) 37... Rd5 {[%emt 0:00:27]} 38. Rc6 {[%emt 0:01:22]} Ke7 {[%emt 0:00:31]} (38... h6 $1 $11 {remains equal.}) 39. Rc7+ {[%emt 0:00:44]} Kf6 $1 {[%emt 0:00:11]} 40. c4 {[%emt 0:00:05]} bxc4 {[%emt 0:00:48]} 41. Rxc4 {[%emt 0:00:05]} Ra5 {[%emt 0:00:17]} 42. Rc6+ {[%emt 0:00:20]} (42. Kc3 $14) 42... Ke7 {[%emt 0:00:09]} 43. Kc3 {[%emt 0:00:25]} Rb5 {[%emt 0:00:04]} 44. Kc2 {[%emt 0:01:06]} Rb3 {[%emt 0:01:16]} 45. Rc3 {[%emt 0:00:05]} Rb7 {[%emt 0:00:47]} 46. Rc4 {[%emt 0:00:14]} Ra7 {[%emt 0:00:04]} 47. Kc3 {[%emt 0:00:33]} Kd6 {[%emt 0:00:09]} 48. Kb4 {[%emt 0:00:30]} Kd5 {[%emt 0:00:25]} (48... Re7 $11 {keeps the balance.}) 49. Rc5+ $16 {[%emt 0:00:06]} Ke4 {[%emt 0:01:25]} 50. Re5+ {[%emt 0:00:13]} Kf3 {[%emt 0:00:25]} 51. Rxf5 {[%emt 0:00:05]} Kg2 {[%emt 0:00:15]} 52. Rh5 {[%emt 0:00:30]} g6 {[%emt 0:00:04]} 53. Rh4 {[%emt 0:00:41]} Kf3 {[%emt 0:00:08]} 54. f5 {[%emt 0:00:07]} ({Better is} 54. Kb5 $16) 54... gxf5 $11 {[%emt 0:00:17]} 55. Kb5 {[%emt 0:00:23]} Kg2 {[%emt 0:00:11]} 56. Kb6 {[%emt 0:00:35]} (56. Rxa4 $2 Rxa4 57. Kxa4 Kxh2 $19) 56... Rf7 {[%emt 0:00:37]} 57. Kb5 {[%emt 0:00:05]} (57. Rxa4 Kxh2 58. Rb4 Kxg3 59. Rb3+ Kg4 $19) 57... Ra7 {[%emt 0:00:04]} 58. Rh5 {[%emt 0:00:22]} ({Not} 58. Rxa4 $2 Rxa4 59. Kxa4 Kxh2 $19) 58... Ra8 $2 {[%emt 0:00:33][%mdl 8192]} (58... Kg1 $11 {and Black is okay.}) 59. Rxh7 $18 {[%emt 0:00:14] [#] Rh5 is the strong threat.} Kf3 $2 {[%emt 0:00:20]} (59... Rd8 60. Rh5 (60. Kxa4 Re8 $16) 60... Rd5+ 61. Kxa4 Re5) 60. Rh4 {[%emt 0:00:06]} Kg2 {[%emt 0:00:03]} 61. Rh5 {[%emt 0:00:34]} Kg1 {[%emt 0:00:30]} (61... f4 $142) 62. Rxf5 {[%emt 0:00:14]} Kxh2 {[%emt 0:00:01]} 63. g4 {[%emt 0:00:17]} (63. Rf4 $142 Kxg3 64. Rxa4) 63... Kg3 {[%emt 0:00:12]} 64. g5 {[%emt 0:00:04]} Kg4 {[%emt 0:00:04]} 65. Rc5 {[%emt 0:00:04] aiming for g6.} Kh5 {[%emt 0:00:08]} 66. Kb4 {[%emt 0:00:11]} Kg6 {[%emt 0:00:05]} 67. Ra5 {[%emt 0:00:06]} Rb8+ $2 {[%emt 0:00:02]} (67... Rf8 68. Kxa4 Rf4+ 69. Kb3 Rf3+ 70. Kc2 Rf2+ 71. Kd3 Rf8) 68. Kxa4 {[%emt 0:00:05] Weighted Error Value: White=0.16 (very precise) /Black=0.29 (precise)} 1-0